fUST/lending_fUST_20251117
["ID","MTS","AMOUNT","RATE_DAILY","PERIOD"]
[394205754,1763379040847,-193.85341116,0.000149,2]
[394205755,1763379040856,-300.0,0.00014931,2]
[394205756,1763379040932,-300.0,0.00014931,2]
[394205757,1763379040942,-300.0,0.00014931,2]
[394205758,1763379040951,-300.0,0.00014931,2]
[394205759,1763379040961,-300.0,0.00014931,2]
[394205760,1763379040970,-300.0,0.00014931,2]
[394205761,1763379040979,-300.0,0.00014931,2]
[394205762,1763379040988,-300.0,0.00014931,2]
[394205763,1763379040998,-300.0,0.00014931,2]
[394205764,1763379041008,-300.0,0.00014931,2]
[394205765,1763379041018,-300.0,0.00014931,2]
[394205766,1763379041027,-300.0,0.00014931,2]
[394205767,1763379041035,-300.0,0.00014931,2]
[394205768,1763379041045,-300.0,0.00014931,2]
[394205769,1763379041055,-300.0,0.00014931,2]
[394205770,1763379041064,-600.0,0.00014931,2]
[394205771,1763379041074,-800.0,0.00015068,2]
[394205772,1763379041083,-500.0,0.0001508,2]
[394205773,1763379041093,-151.0,0.000151,2]
[394205774,1763379041102,-524.87998137,0.00015121,2]
[394205775,1763379041111,-1001.94711302,0.00015121,2]
[394205776,1763379041120,-1004.49475929,0.00015121,2]
[394205777,1763379041129,-500.81441983,0.00015121,2]
[394205778,1763379041138,-503.94861877,0.00015121,2]
[394205779,1763379041147,-1090.68055788,0.00015121,2]
[394205780,1763379041156,-1000.0,0.00015121,2]
[394205781,1763379041165,-301.390223,0.00015121,2]
[394205782,1763379041175,-325.78165932,0.00015121,2]
[394205783,1763379041184,-1000.0,0.00015121,2]
[394205784,1763379041194,-436.00854889,0.00015121,2]
[394205785,1763379041203,-1000.0,0.00015221,2]
[394205786,1763379041212,-599.65177378,0.00015221,2]
[394205787,1763379041221,-508.13254612,0.00015221,2]
[394205788,1763379041229,-100000.0,0.0001532,2]
[394205789,1763379041239,-500.0,0.00015354,2]
[394205790,1763379041248,-435.59980476,0.00015373,2]
[394205791,1763379041257,-500.0,0.00015373,2]
[394205792,1763379041267,-500.0,0.00015373,2]
[394205793,1763379041276,-466.99895109,0.00015373,2]
[394205794,1763379041286,-503.85554989,0.00015373,2]
[394205795,1763379041295,-500.0,0.00015373,2]
[394205796,1763379041305,-500.0,0.00015373,2]
[394205797,1763379041314,-500.0,0.00015373,2]
[394205798,1763379041323,-500.0,0.00015373,2]
[394205799,1763379041333,-500.0,0.00015373,2]
[394205800,1763379041341,-429.52953356,0.00015373,2]
[394205801,1763379041350,-500.0,0.00015373,2]
[394205802,1763379041359,-445.08248483,0.00015373,2]
[394205803,1763379041368,-500.0,0.00015373,2]
[394205804,1763379041377,-500.0,0.00015373,2]
[394205805,1763379041387,-500.0,0.00015373,2]
[394205806,1763379041397,-502.73202336,0.00015373,2]
[394205807,1763379041406,-182.75279002,0.00015373,2]
[394205808,1763379041416,-500.0,0.00015373,2]
[394205809,1763379041425,-169.58130387,0.00015373,2]
[394205810,1763379041434,-502.86159398,0.00015373,2]
[394205811,1763379041443,-500.0,0.00015373,2]
[394205812,1763379041453,-500.0,0.00015373,2]
[394205813,1763379041462,-500.0,0.00015373,2]
[394205814,1763379041471,-500.0,0.00015373,2]
[394205815,1763379041480,-500.0,0.00015373,2]
[394205816,1763379041489,-500.0,0.00015373,2]
[394205817,1763379041497,-500.0,0.00015373,2]
[394205818,1763379041506,-500.0,0.00015373,2]
[394205819,1763379041517,-500.0,0.00015373,2]
[394205820,1763379041527,-500.0,0.00015373,2]
[394205821,1763379041536,-249.43248286,0.00015373,2]
[394205822,1763379041546,-500.0,0.00015373,2]
[394205823,1763379041555,-507.23857365,0.00015373,2]
[394205824,1763379041564,-500.0,0.00015373,2]
[394205825,1763379041573,-500.0,0.00015373,2]
[394205826,1763379041582,-500.0,0.00015373,2]
[394205827,1763379041591,-500.0,0.00015373,2]
[394205828,1763379041600,-151.0,0.000154,2]
[394205829,1763379041609,-151.0,0.000156,2]
[394205830,1763379041619,-500.0,0.00015628,2]
[394205831,1763379041628,-1500.0,0.00015668,2]
[394205832,1763379041638,-1517.26996116,0.00015668,2]
[394205833,1763379041648,-1082.11436431,0.00015768,2]
[394205834,1763379041658,-1819.2868609,0.0001585,2]
[394205835,1763379041667,-151.0,0.000159,2]
[394205836,1763379041678,-500.0,0.00015902,2]
[394205837,1763379041687,-420.0,0.00015911,2]
[394205838,1763379041697,-1680.0,0.00015912,2]
[394205839,1763379041710,-1000.0,0.00015921,2]
[394205840,1763379041721,-1000.0,0.00015921,2]
[394205841,1763379041730,-501.42486407,0.00015921,2]
[394205842,1763379041739,-1000.0,0.00015921,2]
[394205843,1763379041748,-501.54850908,0.00015921,2]
[394205844,1763379041759,-606.11024176,0.00015921,2]
[394205845,1763379041768,-164.0898945,0.00015921,2]
[394205846,1763379041779,-501.0503735,0.00015921,2]
[394205847,1763379041789,-509.45721812,0.00015921,2]
[394205848,1763379041799,-1000.0,0.00015921,2]
[394205849,1763379041808,-1000.83212326,0.00015921,2]
[394205850,1763379041819,-1001.19443095,0.00015921,2]
[394205851,1763379041828,-1001.37329497,0.00015921,2]
[394205852,1763379041838,-1000.0,0.00015921,2]
[394205853,1763379041848,-1000.0,0.00015921,2]
[394205854,1763379041857,-357.78598318,0.00015921,2]
[394205855,1763379041867,-1680.0,0.00015984,2]
[394205856,1763379041877,-214.49673493,0.00016,2]
[394205857,1763379041886,-151.0,0.000161,2]
[394205858,1763379041896,-1024.83677041,0.00016164,2]
[394205859,1763379041905,-500.0,0.00016176,2]
[394205860,1763379041915,-185.90415884,0.00016216,2]
[394205861,1763379041924,-151.0,0.000164,2]
[394205862,1763379041933,-720.0,0.00016424,2]
[394205863,1763379041942,-215.03187472,0.00016428,2]
[394205864,1763379041952,-251.997791,0.00016438,2]
[394205866,1763379041961,-251.997791,0.00016438,2]
[394205867,1763379041970,-251.997791,0.00016438,2]
[394205868,1763379041979,-251.997791,0.00016438,2]
[394205869,1763379041988,-500.0,0.00016438,2]
[394205870,1763379041997,-500.0,0.00016438,2]
[394205871,1763379042007,-588.0371519,0.00016438,2]
[394205873,1763379042017,-500.0,0.00016438,2]
[394205875,1763379042026,-500.0,0.00016438,2]
[394205877,1763379042035,-500.0,0.00016438,2]
[394205879,1763379042044,-500.0,0.00016438,2]
[394205881,1763379042053,-500.0,0.00016438,2]
[394205883,1763379042064,-500.0,0.00016438,2]
[394205885,1763379042074,-500.0,0.00016438,2]
[394205887,1763379042083,-500.0,0.00016438,2]
[394205889,1763379042092,-500.0,0.00016438,2]
[394205891,1763379042103,-500.0,0.00016438,2]
[394205892,1763379042112,-500.0,0.00016438,2]
[394205894,1763379042121,-500.0,0.00016438,2]
[394205896,1763379042130,-500.0,0.00016438,2]
[394205899,1763379042140,-500.0,0.00016438,2]
[394205901,1763379042151,-500.0,0.00016438,2]
[394205903,1763379042161,-500.0,0.00016438,2]
[394205905,1763379042170,-500.0,0.00016438,2]
[394205907,1763379042179,-500.0,0.00016438,2]
[394205909,1763379042189,-500.0,0.00016438,2]
[394205911,1763379042198,-500.0,0.00016438,2]
[394205913,1763379042207,-500.0,0.00016438,2]
[394205915,1763379042216,-500.0,0.00016438,2]
[394205917,1763379042226,-500.0,0.00016438,2]
[394205919,1763379042235,-500.0,0.00016438,2]
[394205921,1763379042245,-500.0,0.00016438,2]
[394205923,1763379042254,-500.0,0.00016438,2]
[394205925,1763379042263,-500.0,0.00016438,2]
[394205927,1763379042272,-458.02173219,0.00016438,2]
[394205929,1763379042282,-500.0,0.00016438,2]
[394205931,1763379042291,-500.0,0.00016438,2]
[394205940,1763379042364,-500.0,0.00016438,2]
[394205942,1763379042373,-500.0,0.00016438,2]
[394205944,1763379042383,-500.0,0.00016438,2]
[394205946,1763379042392,-500.0,0.00016438,2]
[394205948,1763379042402,-500.0,0.00016438,2]
[394205950,1763379042411,-500.0,0.00016438,2]
[394205952,1763379042420,-500.0,0.00016438,2]
[394205954,1763379042430,-500.0,0.00016438,2]
[394205956,1763379042442,-534.87435681,0.00016438,2]
[394205958,1763379042451,-500.0,0.00016438,2]
[394205960,1763379042460,-500.0,0.00016438,2]
[394205962,1763379042470,-500.0,0.00016438,2]
[394205964,1763379042479,-500.0,0.00016438,2]
[394205966,1763379042487,-500.0,0.00016438,2]
[394205968,1763379042497,-500.0,0.00016438,2]
[394205970,1763379042506,-500.0,0.00016438,2]
[394205972,1763379042514,-961.7623716,0.00016438,2]
[394205974,1763379042524,-500.0,0.00016438,2]
[394205976,1763379042533,-961.7623716,0.00016438,2]
[394205978,1763379042542,-500.0,0.00016438,2]
[394205980,1763379042551,-961.7623716,0.00016438,2]
[394205982,1763379042560,-500.0,0.00016438,2]
[394205984,1763379042569,-961.7623716,0.00016438,2]
[394205986,1763379042578,-500.0,0.00016438,2]
[394205988,1763379042587,-961.7623716,0.00016438,2]
[394205990,1763379042597,-500.0,0.00016438,2]
[394205992,1763379042606,-500.0,0.00016438,2]
[394205994,1763379042616,-961.7623716,0.00016438,2]
[394205996,1763379042626,-961.7623716,0.00016438,2]
[394205998,1763379042635,-961.7623716,0.00016438,2]
[394206000,1763379042645,-961.7623716,0.00016438,2]
[394206002,1763379042655,-961.7623716,0.00016438,2]
[394206004,1763379042664,-961.7623716,0.00016438,2]
[394206006,1763379042674,-961.7623716,0.00016438,2]
[394206008,1763379042683,-500.0,0.00016438,2]
[394206010,1763379042693,-961.7623716,0.00016438,2]
[394206012,1763379042708,-961.7623716,0.00016438,2]
[394206014,1763379042719,-500.0,0.00016438,2]
[394206016,1763379042728,-961.7623716,0.00016438,2]
[394206018,1763379042740,-500.0,0.00016438,2]
[394206020,1763379042751,-961.7623716,0.00016438,2]
[394206022,1763379042760,-500.0,0.00016438,2]
[394206024,1763379042770,-961.7623716,0.00016438,2]
[394206026,1763379042784,-500.0,0.00016438,2]
[394206028,1763379042794,-961.7623716,0.00016438,2]
[394206031,1763379042805,-500.0,0.00016438,2]
[394206033,1763379042815,-961.7623716,0.00016438,2]
[394206035,1763379042824,-500.0,0.00016438,2]
[394206037,1763379042834,-961.7623716,0.00016438,2]
[394206039,1763379042844,-500.0,0.00016438,2]
[394206042,1763379042854,-961.7623716,0.00016438,2]
[394206044,1763379042864,-500.0,0.00016438,2]
[394206046,1763379042874,-500.0,0.00016438,2]
[394206048,1763379042883,-500.0,0.00016438,2]
[394206050,1763379042893,-961.7623716,0.00016438,2]
[394206052,1763379042904,-500.0,0.00016438,2]
[394206054,1763379042913,-961.7623716,0.00016438,2]
[394206056,1763379042922,-961.7623716,0.00016438,2]
[394206058,1763379042932,-500.0,0.00016438,2]
[394206060,1763379042941,-961.7623716,0.00016438,2]
[394206061,1763379042950,-961.7623716,0.00016438,2]
[394206062,1763379042960,-500.0,0.00016438,2]
[394206063,1763379042969,-500.0,0.00016438,2]
[394206064,1763379042978,-961.7623716,0.00016438,2]
[394206065,1763379042987,-628.49150422,0.00016438,2]
[394206066,1763379042995,-961.7623716,0.00016438,2]
[394206067,1763379043004,-500.0,0.00016438,2]
[394206068,1763379043013,-961.7623716,0.00016438,2]
[394206069,1763379043022,-961.7623716,0.00016438,2]
[394206070,1763379043031,-500.0,0.00016438,2]
[394206071,1763379043039,-961.7623716,0.00016438,2]
[394206072,1763379043048,-500.0,0.00016438,2]
[394206073,1763379043057,-961.7623716,0.00016438,2]
[394206074,1763379043065,-500.0,0.00016438,2]
[394206075,1763379043074,-961.7623716,0.00016438,2]
[394206076,1763379043083,-961.7623716,0.00016438,2]
[394206077,1763379043092,-500.0,0.00016438,2]
[394206078,1763379043101,-961.7623716,0.00016438,2]
[394206079,1763379043110,-961.7623716,0.00016438,2]
[394206080,1763379043119,-961.7623716,0.00016438,2]
[394206081,1763379043128,-961.7623716,0.00016438,2]
[394206082,1763379043137,-961.7623716,0.00016438,2]
[394206083,1763379043146,-961.7623716,0.00016438,2]
[394206085,1763379043155,-961.7623716,0.00016438,2]
[394206086,1763379043164,-961.7623716,0.00016438,2]
[394206087,1763379043174,-961.7623716,0.00016438,2]
[394206088,1763379043183,-961.7623716,0.00016438,2]
[394206090,1763379043192,-961.7623716,0.00016438,2]
[394206092,1763379043202,-961.7623716,0.00016438,2]
[394206094,1763379043211,-961.7623716,0.00016438,2]
[394206097,1763379043221,-961.7623716,0.00016438,2]
[394206099,1763379043231,-961.76237159,0.00016438,2]
[394206101,1763379043240,-961.7623716,0.00016438,2]
[394206103,1763379043249,-961.7623716,0.00016438,2]
[394206105,1763379043258,-961.7623716,0.00016438,2]
[394206107,1763379043268,-961.7623716,0.00016438,2]
[394206109,1763379043277,-961.7623716,0.00016438,2]
[394206111,1763379043287,-961.7623716,0.00016438,2]
[394206113,1763379043296,-961.7623716,0.00016438,2]
[394206115,1763379043305,-961.7623716,0.00016438,2]
[394206117,1763379043315,-500.0,0.00016438,2]
[394206119,1763379043324,-935.14216308,0.00016438,2]
[394206121,1763379043333,-935.14216308,0.00016438,2]
[394206123,1763379043342,-935.14216308,0.00016438,2]
[394206125,1763379043352,-935.14216308,0.00016438,2]
[394206127,1763379043362,-935.14216308,0.00016438,2]
[394206129,1763379043372,-935.14216308,0.00016438,2]
[394206131,1763379043381,-935.14216308,0.00016438,2]
[394206133,1763379043390,-935.14216308,0.00016438,2]
[394206135,1763379043400,-935.14216308,0.00016438,2]
[394206137,1763379043409,-935.14216308,0.00016438,2]
[394206139,1763379043418,-935.14216308,0.00016438,2]
[394206141,1763379043427,-935.14216308,0.00016438,2]
[394206143,1763379043436,-935.14216308,0.00016438,2]
[394206144,1763379043445,-935.14216308,0.00016438,2]
[394206147,1763379043455,-935.14216308,0.00016438,2]
[394206149,1763379043464,-935.14216307,0.00016438,2]
[394206151,1763379043474,-151.0,0.00016438,2]
[394206153,1763379043483,-151.0,0.00016438,2]
[394206154,1763379043492,-500.0,0.0001645,2]
[394206157,1763379043501,-1500.0,0.00016468,2]
[394206159,1763379043510,-1500.0,0.00016468,2]
[394206161,1763379043520,-1016.64132678,0.00016468,2]
[394206163,1763379043529,-504.70574074,0.00016468,2]
[394206165,1763379043539,-541.04800509,0.00016468,2]
[394206167,1763379043548,-1500.0,0.00016468,2]
[394206168,1763379043556,-500.4503771,0.00016473,2]
[394206170,1763379043565,-501.3914242,0.00016473,2]
[394206172,1763379043574,-505.03306875,0.00016473,2]
[394206174,1763379043583,-500.0,0.00016473,2]
[394206176,1763379043592,-500.0,0.00016473,2]
[394206178,1763379043602,-500.0,0.00016473,2]
[394206180,1763379043611,-500.81735696,0.00016473,2]
[394206182,1763379043620,-500.0,0.00016473,2]
[394206191,1763379043689,-501.96334487,0.00016473,2]
[394206193,1763379043702,-507.90955875,0.00016473,2]
[394206195,1763379043712,-500.0,0.00016473,2]
[394206197,1763379043722,-151.0,0.000166,2]
[394206199,1763379043732,-680.55893086,0.0001669,2]
[394206201,1763379043743,-500.0,0.00016724,2]
[394206203,1763379043753,-227.00431316,0.00016738,2]
[394206205,1763379043763,-228.59334335,0.00016758,2]
[394206207,1763379043773,-227.00590219,0.00016759,2]
[394206209,1763379043784,-227.00431475,0.00016759,2]
[394206211,1763379043795,-151.0,0.000169,2]
[394206213,1763379043804,-500.0,0.00016998,2]
[394206215,1763379043815,-32158.53601883,0.00017,2]
[394206217,1763379043824,-1855.51592409,0.00017016,2]
[394206219,1763379043834,-2000.0,0.00017016,2]
[394206221,1763379043844,-2000.0,0.00017016,2]
[394206223,1763379043855,-1000.0,0.00017021,2]
[394206225,1763379043864,-1819.2868609,0.000172,2]
[394206227,1763379043874,-500.0,0.00017272,2]
[394206229,1763379043883,-587.0,0.00017422,2]
[394206231,1763379043892,-926.0,0.00017423,2]
[394206233,1763379043902,-1917.7130029,0.00017536,2]
[394206235,1763379043911,-500.0,0.00017545,2]
[394206237,1763379043921,-1931.38695596,0.00017564,2]
[394206239,1763379043931,-1477.42487773,0.00017564,2]
[394206241,1763379043940,-1004.37558909,0.00017568,2]
[394206243,1763379043950,-1635.0,0.00017582,2]
[394206245,1763379043959,-500.0,0.00017819,2]
[394206247,1763379043968,-160.0,0.00017867,2]
[394206249,1763379043977,-36187.92069803,0.00018,2]
[394206251,1763379043986,-2034.75722423,0.00018,2]
[394206253,1763379043995,-864.0,0.00018066,2]
[394206255,1763379044006,-500.0,0.00018093,2]
[394206257,1763379044015,-500.0,0.00018367,2]
[394206259,1763379044024,-260.0,0.00018415,2]
[394206261,1763379044033,-247.83334714,0.00018428,2]
[394206263,1763379044042,-1819.2868609,0.0001855,2]
[394206265,1763379044054,-395.03358643,0.00018641,2]
[394206267,1763379044064,-302.60665372,0.000189,2]
[394206269,1763379044073,-360.0,0.00018963,2]
[394206271,1763379044083,-823.0,0.00019076,2]
[394206273,1763379044092,-302.60665372,0.00019089,2]
[394206275,1763379044103,-302.60665372,0.00019278,2]
[394206277,1763379044112,-303.48424282,0.00019467,2]
[394206279,1763379044121,-460.0,0.00019511,2]
[394206281,1763379044131,-680.55893086,0.00019849,2]
[394206283,1763379044141,-1000.0,0.00019873,2]
[394206285,1763379044150,-227.00431316,0.00019885,2]
[394206287,1763379044160,-228.59334335,0.000199,2]
[394206289,1763379044169,-227.00590219,0.000199,2]
[394206291,1763379044178,-227.00431475,0.000199,2]
[394206293,1763379044188,-1819.2868609,0.000199,2]
[394206295,1763379044198,-1152.0,0.0002,2]
[394206298,1763379044207,-159578.0,0.0002,7]
[394206299,1763379044217,-400.67432439,0.0002,7]
[394206301,1763379044226,-151.0,0.0002,7]
[394206303,1763379044235,-151.0,0.0002,7]
[394206305,1763379044245,-2315.228455,0.0002,7]
[394206307,1763379044254,-2315.228455,0.0002,7]
[394206309,1763379044263,-2315.228455,0.0002,7]
[394206311,1763379044273,-2315.228455,0.0002,7]
[394206313,1763379044282,-345.07192,0.0002,7]
[394206315,1763379044291,-345.07192,0.0002,7]
[394206317,1763379044300,-345.07192,0.0002,7]
[394206319,1763379044309,-345.07192,0.0002,7]
[394206321,1763379044319,-251.997791,0.0002,7]
[394206323,1763379044328,-251.997791,0.0002,7]
[394206325,1763379044337,-251.997791,0.0002,7]
[394206327,1763379044349,-251.997791,0.0002,7]
[394206329,1763379044357,-11235.22040954,0.0002,2]
[394206331,1763379044366,-183.73144672,0.0002,2]
[394206333,1763379044375,-151.0,0.0002,7]
[394206335,1763379044384,-251.68318107,0.0002,21]
[394206337,1763379044393,-151.0,0.0002,7]
[394206339,1763379044403,-2963.6142836,0.0002,20]
[394206341,1763379044412,-2000.0,0.0002,7]
[394206343,1763379044423,-560.0,0.00020058,2]
[394206345,1763379044432,-691.330304,0.00020187,2]
[394206347,1763379044441,-280.63481955,0.00020428,2]
[394206349,1763379044450,-151.0,0.00020499,2]
[394206351,1763379044459,-151.0,0.00020499,2]
[394206353,1763379044468,-165.74880417,0.00020499,2]
[394206355,1763379044476,-1000.0,0.00020499,2]
[394206357,1763379044486,-1000.0,0.00020499,2]
[394206359,1763379044495,-1000.0,0.00020499,2]
[394206361,1763379044504,-1000.0,0.00020499,2]
[394206363,1763379044513,-1000.0,0.00020499,2]
[394206365,1763379044529,-1000.0,0.00020499,2]
[394206367,1763379044542,-1000.0,0.00020499,2]
[394206369,1763379044552,-1000.0,0.00020499,2]
[394206371,1763379044561,-1000.0,0.00020499,2]
[394206373,1763379044570,-1000.0,0.00020499,2]
[394206375,1763379044579,-1000.0,0.00020499,2]
[394206377,1763379044588,-1000.0,0.00020499,2]
[394206378,1763379044597,-1000.0,0.00020499,2]
[394206380,1763379044607,-1000.0,0.00020499,2]
[394206383,1763379044616,-1000.0,0.00020499,2]
[394206384,1763379044625,-1000.0,0.00020499,2]
[394206386,1763379044634,-1000.0,0.00020499,2]
[394206389,1763379044645,-1000.0,0.00020499,2]
[394206390,1763379044656,-1000.0,0.00020499,2]
[394206393,1763379044666,-845.54684014,0.00020499,2]
[394206394,1763379044676,-1000.0,0.00020499,2]
[394206397,1763379044686,-1000.0,0.00020499,2]
[394206399,1763379044697,-4593.02845099,0.00020499,2]
[394206401,1763379044710,-500.0,0.00020499,2]
[394206403,1763379044719,-500.0,0.00020499,2]
[394206405,1763379044728,-500.0,0.00020499,2]
[394206407,1763379044738,-500.0,0.00020499,2]
[394206409,1763379044748,-500.0,0.00020499,2]
[394206411,1763379044757,-500.0,0.00020499,2]
[394206413,1763379044766,-500.0,0.00020499,2]
[394206415,1763379044776,-500.0,0.00020499,2]
[394206417,1763379044785,-500.0,0.00020499,2]
[394206419,1763379044795,-510.41686513,0.00020499,2]
[394206421,1763379044804,-159.828821,0.00020548,7]
[394206423,1763379044812,-159.828821,0.00020548,7]
[394206425,1763379044822,-159.828821,0.00020548,7]
[394206427,1763379044831,-159.828821,0.00020548,7]
[394206429,1763379044840,-159.828821,0.00020548,7]
[394206431,1763379044850,-159.828821,0.00020548,7]
[394206433,1763379044859,-159.828821,0.00020548,7]
[394206435,1763379044868,-159.828821,0.00020548,7]
[394206443,1763379044935,-4762.97050368,0.00020554,2]
[394206445,1763379044944,-400.67432439,0.000206,7]
[394206447,1763379044953,-660.0,0.00020606,2]
[394206449,1763379044963,-4939.20041232,0.00020609,2]
[394206451,1763379044973,-5121.95082757,0.00020664,2]
[394206453,1763379044982,-5311.46300819,0.00020719,2]
[394206455,1763379044992,-5507.9871395,0.00020774,2]
[394206457,1763379045001,-1387.68437399,0.00020829,2]
[394206459,1763379045011,-1152.0,0.00020888,2]
[394206461,1763379045020,-1547.7476297,0.00021,10]
[394206463,1763379045030,-760.0,0.00021154,2]
[394206465,1763379045039,-400.67432439,0.000212,7]
[394206467,1763379045049,-860.0,0.00021702,2]
[394206469,1763379045059,-2000.0,0.00021765,7]
[394206471,1763379045068,-478.460357,0.0002186,20]
[394206473,1763379045077,-244.0,0.0002186,20]
[394206475,1763379045086,-500.0,0.00021917,2]
[394206477,1763379045097,-577.755337,0.00021918,2]
[394206479,1763379045106,-577.755337,0.00021918,2]
[394206481,1763379045116,-577.755337,0.00021918,2]
[394206483,1763379045129,-577.755337,0.00021918,2]
[394206485,1763379045138,-577.755337,0.00021918,2]
[394206487,1763379045148,-577.755337,0.00021918,2]
[394206489,1763379045158,-577.755337,0.00021918,2]
[394206491,1763379045167,-577.755337,0.00021918,2]
[394206493,1763379045176,-151.0,0.00021918,7]
[394206495,1763379045185,-151.0,0.00021918,7]
[394206497,1763379045194,-151.0,0.00021918,7]
[394206499,1763379045203,-200.802667,0.00021918,7]
[394206500,1763379045212,-150.0,0.00021918,2]
[394206502,1763379045222,-28260.27,0.00022,7]
[394206504,1763379045231,-522.39,0.00022,14]
[394206506,1763379045241,-525.41,0.00022,7]
[394206508,1763379045251,-961.52831889,0.00022,5]
[394206510,1763379045260,-960.0,0.0002225,2]
[394206512,1763379045269,-313.43629196,0.00022428,2]
[394206514,1763379045278,-300.0,0.00022466,2]
[394206516,1763379045287,-1060.0,0.00022798,2]
[394206518,1763379045297,-755.0,0.00022871,2]
[394206520,1763379045307,-5355.32147817,0.00023,2]
[394206522,1763379045316,-680.55893086,0.00023007,2]
[394206524,1763379045326,-500.0,0.00023013,2]
[394206526,1763379045335,-450.0,0.00023014,2]
[394206528,1763379045345,-227.00431316,0.00023031,2]
[394206530,1763379045355,-228.59334335,0.00023041,2]
[394206532,1763379045364,-227.00590219,0.00023042,2]
[394206534,1763379045374,-227.00431475,0.00023042,2]
[394206536,1763379045384,-1160.0,0.00023346,2]
[394206538,1763379045393,-2000.0,0.00023529,7]
[394206540,1763379045402,-185.19814475,0.00023894,2]
[394206542,1763379045411,-1726.59010579,0.00024,2]
[394206544,1763379045420,-463.12333871,0.00024,2]
[394206546,1763379045430,-1000.0,0.00024046,20]
[394206548,1763379045439,-492.0,0.00024046,20]
[394206550,1763379045448,-1200.74643133,0.00024055,5]
[394206552,1763379045457,-500.0,0.00024109,2]
[394206554,1763379045466,-389417.61192187,0.00024142,2]
[394206556,1763379045475,-151.0,0.00024142,7]
[394206558,1763379045484,-151.0,0.00024142,7]
[394206559,1763379045494,-151.0,0.00024142,7]
[394206562,1763379045504,-346.23776438,0.00024428,2]
[394206564,1763379045514,-681.38815713,0.00024524,5]
[394206566,1763379045523,-400.67432439,0.00024618,2]
[394206568,1763379045532,-116762.72740375,0.0002465,2]
[394206570,1763379045542,-200.0,0.00024658,15]
[394206572,1763379045551,-151.0,0.00024658,7]
[394206574,1763379045560,-500.0,0.00024773,2]
[394206576,1763379045569,-500.0,0.00024773,2]
[394206577,1763379045579,-16754.58798679,0.00024774,2]
[394206580,1763379045588,-155.740807,0.00024778,2]
[394206581,1763379045598,-602.16737408,0.00024778,2]
[394206584,1763379045611,-151.0,0.000248,7]
[394206586,1763379045621,-151.0,0.000248,7]
[394206587,1763379045630,-2315.228455,0.000248,7]
[394206589,1763379045641,-2315.228455,0.000248,7]
[394206591,1763379045650,-2315.228455,0.000248,7]
[394206593,1763379045659,-2315.228455,0.000248,7]
[394206595,1763379045668,-345.07192,0.000248,7]
[394206597,1763379045676,-345.07192,0.000248,7]
[394206599,1763379045685,-345.07192,0.000248,7]
[394206601,1763379045694,-345.07192,0.000248,7]
[394206603,1763379045706,-577.755337,0.000248,2]
[394206605,1763379045716,-577.755337,0.000248,2]
[394206607,1763379045724,-577.755337,0.000248,2]
[394206609,1763379045734,-577.755337,0.000248,2]
[394206611,1763379045742,-159.828821,0.000248,7]
[394206613,1763379045752,-159.828821,0.000248,7]
[394206615,1763379045761,-159.828821,0.000248,7]
[394206617,1763379045770,-159.828821,0.000248,7]
[394206619,1763379045781,-251.997791,0.000248,7]
[394206621,1763379045790,-251.997791,0.000248,7]
[394206623,1763379045798,-251.997791,0.000248,7]
[394206625,1763379045808,-251.997791,0.000248,7]
[394206627,1763379045817,-151.0,0.000248,7]
[394206629,1763379045826,-158.419537,0.000248,7]
[394206631,1763379045835,-300.0,0.00024873,2]